bitfinex-derivatives/quotes_SOLF0:USTF0_20250829
["timestamp","ask_amount","ask_price","bid_price","bid_amount"]
[1756474870597,319.82,210.28,210.11,66.6194]
[1756474870903,319.82,210.28,210.13,66.613]
[1756474871101,29.59353967,210.39,210.19,66.5943]
[1756474871298,29.59353967,210.39,210.23,66.5811]
[1756474871299,143.86,210.39,210.23,66.5811]
[1756474871494,319.84,210.42,210.27,7.38]
[1756474871699,143.92,210.46,210.27,7.38]
[1756474871999,143.92,210.46,210.29,0.03321537]
[1756474872397,143.92,210.46,210.27,7.38]
[1756474872700,144.12,210.48,210.35,0.03266858]
[1756474872901,4.39,210.46,210.35,0.03266858]
[1756474873201,4.39,210.46,210.24,7.38]
[1756474873404,29.59353967,210.41,210.25,62.0]
[1756474873706,4.39,210.48,210.22,7.38]
[1756474873901,4.39,210.39,210.22,7.38]
[1756474874096,21.04,210.38,210.22,7.38]
[1756474874298,21.84,210.44,210.25,7.38]
[1756474874796,0.0315007,210.37,210.25,7.38]
[1756474874996,0.0315007,210.37,210.18,7.38]
[1756474875198,66.5678,210.28,210.08,56.69353967]
[1756474875406,66.5678,210.28,210.0,66.6542]
[1756474875407,66.5747,210.26,210.09,7.38]
[1756474875903,145.24,210.33,210.12,66.6168]
[1756474876106,66.5609,210.3,210.15,0.03499957]
[1756474876303,70.9777,210.31,210.15,0.03499957]
[1756474876602,145.26,210.37,210.17,7.38]
[1756474876798,319.74,210.38,210.17,7.38]
[1756474876995,66.5417,210.36,210.18,7.38]
[1756474877203,66.5615,210.3,210.25,0.0315932]
[1756474877505,66.5615,210.3,210.01,66.6509]
[1756474877506,145.58,210.32,210.11,7.38]
[1756474877707,66.5702,210.27,210.11,7.38]
[1756474877908,66.5761,210.25,210.11,7.38]
[1756474878106,70.8643,210.23,210.11,7.38]
[1756474878297,4.42,210.31,210.11,7.38]
[1756474878502,70.9772,210.31,210.11,7.38]
[1756474878800,66.5543,210.32,210.11,7.38]
[1756474878998,4.41,210.38,210.14,7.38]
[1756474879195,66.5258,210.41,210.2,7.38]
[1756474879506,66.5048,210.48,210.19,96.18813967]
[1756474879507,70.9288,210.53,210.32,29.59353967]
[1756474879802,66.4702,210.59,210.33,70.8286]
[1756474880010,8.5407,210.72,210.33,70.8286]
[1756474880011,4.44,210.71,210.44,29.59353967]
[1756474880211,66.4197,210.75,210.51,7.38]
[1756474880397,66.4362,210.7,210.52,62.0]
[1756474880598,146.56,210.77,210.54,7.38]
[1756474880802,146.56,210.77,210.57,7.38]
[1756474880803,212.9723,210.77,210.57,7.38]
[1756474881006,146.56,210.77,210.57,7.38]
[1756474881207,146.56,210.77,210.57,36.97353967]
[1756474881405,4.44,210.8,210.65,0.03220184]
[1756474881905,4.44,210.8,210.64,7.38]
[1756474882107,5.20899965,211.14,210.64,7.38]
[1756474882108,4.44,210.89,210.69,29.59353967]
[1756474882402,4.44,210.89,210.7,0.03560352]
[1756474882602,4.44,210.89,210.64,12.96]
[1756474882803,4.44,210.89,210.64,7.38]
[1756474883005,29.59353967,210.88,210.57,7.38]
[1756474883201,29.59353967,210.88,210.57,36.97353967]
[1756474883202,4.41,210.87,210.57,36.97353967]
[1756474883403,4.41,210.87,210.63,29.59353967]
[1756474883601,4.41,210.85,210.58,36.97353967]
[1756474883903,99.5,210.86,210.59,62.0]
[1756474884110,4.41,210.81,210.52,29.59353967]
[1756474884309,4.41,210.81,210.51,73.8722]
[1756474884310,0.03525598,210.74,210.51,7.38]
[1756474884607,4.41,210.72,210.51,7.38]
[1756474885000,0.03471336,210.64,210.51,7.38]
[1756474885406,4.41,210.72,210.51,7.38]
[1756474885702,4.41,210.72,210.44,66.5154]
[1756474886009,0.03207364,210.6,210.47,7.38]
[1756474886410,4.41,210.66,210.39,29.59353967]
[1756474886411,2.56,210.64,210.39,29.59353967]
[1756474886609,2.56,210.64,210.4,73.9079]
[1756474886803,0.03158534,210.56,210.43,7.38]
[1756474887314,2.56,210.64,210.43,7.38]
[1756474887315,4.41,210.63,210.43,7.38]
[1756474887607,0.03283668,210.52,210.36,7.38]
[1756474888010,4.41,210.56,210.36,7.38]
[1756474888409,0.03454303,210.46,210.36,7.38]
[1756474889412,66.4661,210.6,210.38,7.38]
[1756474890010,66.4432,210.68,210.39,62.0]
[1756474890011,214.4403,210.62,210.39,62.0]
[1756474890212,319.32,210.64,210.45,70.7878]
[1756474890412,319.32,210.64,210.46,155.26]
[1756474890617,319.32,210.64,210.48,0.03007276]
[1756474890908,66.4641,210.61,210.46,7.38]
[1756474891109,66.4614,210.62,210.41,36.52]
[1756474891313,319.32,210.64,210.42,7.38]
[1756474891508,66.4872,210.54,210.32,7.38]
[1756474891708,66.4785,210.57,210.33,148.08]
[1756474891913,148.08,210.58,210.33,148.08]
[1756474891914,4.2745,210.52,210.41,0.03397514]
[1756474892114,70.9278,210.54,210.41,0.03397514]
[1756474892310,66.498,210.51,210.32,7.38]
[1756474892515,4.44,210.54,210.32,199.7548]
[1756474892814,147.98,210.57,210.35,66.5471]
[1756474893115,147.98,210.57,210.41,0.0313852]
[1756474893611,66.5024,210.5,210.36,7.38]
[1756474893813,4.44,210.51,210.47,0.03279577]
[1756474894018,214.4595,210.57,210.47,0.03279577]
[1756474894019,152.2337,210.56,210.47,0.03279577]
[1756474894314,147.96,210.56,210.35,7.38]
[1756474894510,147.96,210.56,210.49,0.03022756]
[1756474894814,147.96,210.56,210.32,96.14983967]
[1756474894815,319.32,210.64,210.47,7.38]
[1756474895014,29.59353967,210.6,210.35,7.38]
[1756474895216,4.44,210.59,210.36,66.5435]
[1756474895417,4.44,210.59,210.37,66.54]
[1756474895809,4.44,210.59,210.36,66.544]
[1756474896008,4.44,210.59,210.4,7.38]
[1756474896211,4.44,210.59,210.46,0.03366513]
[1756474896707,4.44,210.59,210.4,7.38]
[1756474897314,4.44,210.59,210.47,0.03236154]
[1756474897723,4.43,210.57,210.47,0.03236154]
[1756474898116,4.43,210.57,210.36,66.5439]
[1756474898317,4.43,210.57,210.39,66.5346]
[1756474898515,107.38,210.58,210.43,7.76302511]
[1756474898712,323.75,210.64,210.43,7.76302511]
[1756474898713,323.75,210.64,210.44,66.5177]
[1756474898915,323.75,210.64,210.43,7.73]
[1756474899313,323.75,210.64,210.52,0.03338457]
[1756474899822,148.0,210.63,210.52,0.03338457]
[1756474900413,34.02353967,210.62,210.52,0.03338457]
[1756474900824,34.02353967,210.62,210.36,7.73]
[1756474900825,4.4,210.56,210.36,7.73]
[1756474901219,25.72,210.55,210.36,7.73]
[1756474901415,29.59353967,210.62,210.39,66.5345]
[1756474901615,154.4324,210.63,210.43,4.2763]
[1756474901814,154.4324,210.63,210.42,66.524]
[1756474901815,154.4324,210.63,210.44,7.73]
[1756474902119,0.03232472,210.53,210.44,7.73]
[1756474903317,0.03232472,210.53,210.44,12.0061]
[1756474903523,0.03232472,210.53,210.44,7.73]
[1756474903723,0.03232472,210.53,210.45,62.0]
[1756474904124,0.03232472,210.53,210.44,7.73]
[1756474904631,0.03232472,210.53,210.44,8.21]
[1756474904818,0.03232472,210.53,210.44,7.73]
[1756474905419,4.43,210.72,210.49,66.501]
[1756474905624,4.43,210.72,210.51,7.73]
[1756474905830,66.4348,210.71,210.51,7.73]
[1756474906023,152.07,210.72,210.52,66.4937]
[1756474906223,152.07,210.72,210.54,66.4867]
[1756474906525,152.07,210.72,210.52,66.4937]
[1756474906831,4.43,210.72,210.57,7.73]
[1756474907223,4.43,210.72,210.6,0.03003991]
[1756474907427,147.5,210.74,210.6,0.03003991]
[1756474907623,72.09535607,210.78,210.6,66.49773991]
[1756474907823,323.67,210.79,210.61,66.4651]
[1756474908023,147.22,210.8,210.66,66.4493]
[1756474908626,147.22,210.8,210.71,0.03292002]
[1756474909924,151.65,210.8,210.71,0.03292002]
[1756474910125,66.4096,210.79,210.71,0.03292002]
[1756474910328,66.4157,210.77,210.71,0.03292002]
[1756474910525,66.4213,210.75,210.71,0.03292002]
[1756474910726,66.4313,210.72,210.56,319.2]
[1756474911023,66.4402,210.69,210.55,7.73]
[1756474911625,4.2722,210.64,210.44,415.20953967]
[1756474911825,146.76,210.64,210.46,66.5124]
[1756474912134,0.03514889,210.64,210.46,66.5119]
[1756474912427,146.7,210.64,210.46,66.5124]
[1756474912638,4.4,210.65,210.48,7.73]
[1756474912822,0.03509881,210.57,210.48,7.73]
[1756474913023,141.07509881,210.66,210.54,0.0325308]
[1756474914329,66.4201,210.76,210.55,66.4833]
[1756474914330,66.4238,210.75,210.55,66.4833]
[1756474914634,96.01363967,210.76,210.54,7.7625308]
[1756474914635,66.4284,210.73,210.54,7.7625308]
[1756474914932,4.2709,210.7,210.54,7.73]
[1756474915129,66.4345,210.71,210.61,0.03358834]
[1756474915328,66.4402,210.69,210.61,0.03358834]
[1756474915535,66.4495,210.66,210.61,0.03358834]
[1756474915732,146.32,210.66,210.61,0.03358834]
[1756474915930,66.4224,210.75,210.61,0.03358834]
[1756474916231,66.4311,210.72,210.61,0.03358834]
[1756474916429,4.2715,210.67,210.49,4.275]
[1756474916630,4.2715,210.67,210.64,0.03341841]
[1756474917036,0.03178638,210.6,210.43,7.73]
[1756474917437,146.14,210.61,210.46,4.2757]
[1756474917635,146.14,210.61,210.43,7.73]
[1756474917835,146.14,210.61,210.44,62.0]
[1756474918036,146.14,210.61,210.43,7.73]
[1756474918241,4.2731,210.59,210.45,4.2759]
[1756474918637,146.14,210.61,210.43,7.73]
[1756474918638,0.03084776,210.54,210.43,7.73]
[1756474919437,0.03084776,210.54,210.44,4.2761]
[1756474919936,0.03084776,210.54,210.44,66.5189]
[1756474920142,0.03084776,210.54,210.43,7.73]
[1756474920637,146.12,210.63,210.49,66.5027]
[1756474921040,145.94,210.68,210.54,4.2741]
[1756474921340,145.94,210.68,210.53,7.73]
[1756474921745,0.03,210.76,210.58,66.4738]
[1756474922041,0.03,210.76,210.59,74.2007]
[1756474922241,319.1,210.78,210.64,66.4544]
[1756474922440,319.1,210.78,210.65,7.73]
[1756474922637,319.1,210.78,210.66,4.2717]
[1756474922936,0.03,210.9,210.69,66.4398]
[1756474923140,72.08411105,210.92,210.78,66.4114]
[1756474923332,4.2954,210.98,210.82,4.2684]
[1756474923834,146.0,210.97,210.77,3.85160469]
[1756474924040,0.03,210.98,210.81,7.73]
[1756474924546,0.03,210.98,210.85,0.03220449]
[1756474924735,66.352,210.97,210.85,0.03220449]
[1756474924936,0.03,210.98,210.83,66.395]
[1756474925134,0.03,210.98,210.81,74.132]
[1756474925340,0.03,210.98,210.82,62.0]
[1756474925539,145.96,211.01,210.86,7.73]
[1756474925735,0.03,211.06,210.87,0.03193768]
[1756474925939,0.03,211.06,210.86,7.73]
[1756474926135,385.4472,211.05,210.86,7.73]
[1756474926340,0.03,211.01,210.86,7.73]
[1756474926543,66.3459,210.99,210.79,36.78353967]
[1756474926734,145.88,210.98,210.79,36.78353967]
[1756474926940,150.1454,210.98,210.79,7.19]
[1756474927137,212.229,210.98,210.79,7.19]
[1756474927336,66.3684,210.92,210.86,0.03129181]
[1756474927536,66.3359,211.03,210.86,0.03129181]
[1756474927737,145.94,211.02,210.86,0.03129181]
[1756474928044,145.94,211.02,210.81,66.4017]
[1756474928045,66.3403,211.01,210.85,7.19]
[1756474928243,66.3462,210.99,210.92,0.03102459]
[1756474928440,66.352,210.97,210.92,0.03102459]
[1756474928638,70.6209,210.96,210.92,0.03102459]
[1756474928834,70.6209,210.96,210.77,7.19]
[1756474928835,66.368,210.92,210.77,7.19]
[1756474929144,150.0266,210.92,210.77,7.19]
[1756474929346,216.3942,210.92,210.77,7.19]
[1756474929539,66.3752,210.9,210.77,7.19]
[1756474929935,212.1276,210.92,210.77,7.19]
[1756474930134,66.3711,210.91,210.77,7.19]
[1756474930339,70.6442,210.89,210.75,3.38]
[1756474930536,66.41540085,210.87,210.71,7.19]
[1756474930740,66.3867,210.86,210.71,7.19]
[1756474930942,4.268,210.85,210.71,7.19]
[1756474931342,0.03005815,210.81,210.71,7.19]
[1756474931740,66.3623,210.94,210.76,7.19]
[1756474931946,79.66,210.92,210.77,66.414]
[1756474932244,0.04,210.97,210.77,66.4145]
[1756474932443,66.3552,210.96,210.83,7.19]
[1756474932645,0.04,210.92,210.76,7.19]
[1756474933151,4.266,210.95,210.82,0.03130521]
[1756474933341,0.04,210.99,210.82,7.22130521]
[1756474933544,66.3364,211.02,210.87,7.19]
[1756474933742,66.3395,211.01,210.87,7.19]
[1756474933944,211.7539,211.03,210.87,7.19]
[1756474933945,145.42,211.03,210.87,7.19]
[1756474934251,66.3364,211.02,210.87,7.19]
[1756474934442,66.3551,210.96,210.8,7.19]
[1756474934645,0.04,210.95,210.7,66.4356]
[1756474934952,66.4012,210.94,210.86,0.03008764]
[1756474935149,66.375,210.9,210.86,0.03008764]
[1756474935343,4.2671,210.89,210.74,11.4599]
[1756474935544,0.04,210.92,210.86,0.03101782]
[1756474935750,66.3711,210.91,210.86,0.03101782]
[1756474936052,193.7282,210.92,210.74,7.19]
[1756474936251,127.36,210.92,210.75,66.42]
[1756474936551,4.2667,210.91,210.76,4.2696]
[1756474936746,29.59353967,210.89,210.64,7.19]
[1756474937156,29.59353967,210.89,210.68,66.4428]
[1756474937346,464.12,210.9,210.69,66.4397]
[1756474937656,318.78,210.9,210.74,66.4241]
[1756474937847,318.78,210.9,210.72,7.19]
[1756474938048,318.78,210.9,210.73,66.4266]
[1756474938243,72.25874205,211.01,210.78,66.4115]
[1756474938444,0.04,211.0,210.84,66.3923]
[1756474938753,0.82504534,211.05,210.91,4.2666]
[1756474938952,0.82504534,211.05,210.88,7.19]
[1756474939157,0.04,211.04,210.86,66.3859]
[1756474939456,0.04,211.04,210.87,4.2673]
[1756474939645,0.82504534,211.05,210.82,66.3973]
[1756474939845,0.04,211.04,210.83,62.0]
[1756474940146,0.04,211.04,210.93,0.03168688]
[1756474940754,145.18,211.03,210.93,0.03168688]
[1756474940947,145.12,211.03,210.93,0.03168688]
[1756474941353,0.04,211.11,210.93,0.03168688]
[1756474941551,145.04,211.1,210.93,0.03168688]
[1756474941746,145.04,211.1,210.92,4.2663]
[1756474941945,0.04,211.08,210.87,7.19]
[1756474942350,0.04,211.08,210.95,0.03258461]
[1756474942548,145.0,211.07,210.95,0.03258461]
[1756474942855,145.0,211.07,210.87,11.4573]
[1756474943052,0.82478136,211.12,210.99,0.03090168]
[1756474943253,0.04,211.22,211.07,66.3201]
[1756474943551,0.82437106,211.26,211.09,66.3138]
[1756474943852,145.38,211.26,211.08,66.3168]
[1756474944155,145.38,211.26,211.15,0.03229345]
[1756474944556,0.86407824,211.29,211.15,0.03229345]
[1756474944756,145.28,211.29,211.15,0.03229345]
[1756474944957,145.28,211.29,211.13,7.19]
[1756474945359,4.299,211.29,211.15,4.2617]
[1756474945857,4.299,211.29,211.14,4.2619]
[1756474946057,4.259,211.29,211.2,0.02999895]
[1756474946255,463.76,211.33,211.2,0.02999895]
[1756474946458,318.7,211.33,211.2,4.29079895]
[1756474946758,149.1972,211.38,211.2,66.2788]
[1756474946952,144.94,211.38,211.23,7.19]
[1756474947557,240.59993967,211.37,211.11,66.3063]
[1756474947861,0.03072404,211.33,211.15,7.19]
[1756474948158,66.2394,211.33,211.15,7.19]
[1756474948466,4.2589,211.3,211.15,7.19]
[1756474949057,146.46,211.3,211.15,73.4844]
[1756474949363,146.46,211.3,211.16,4.2616]
[1756474949556,146.46,211.3,211.17,62.0]
[1756474949966,0.03380509,211.25,211.17,62.0]
[1756474950357,0.03380509,211.25,211.15,7.19]
[1756474951361,0.03380509,211.25,211.15,73.4852]
[1756474951556,0.03380509,211.25,211.15,77.7468]
[1756474951760,0.03380509,211.25,211.15,7.19]
[1756474952362,0.03380509,211.25,211.09,4.263]
[1756474952561,0.03380509,211.25,211.06,384.8018]
[1756474952562,0.03380509,211.25,211.08,7.19]
[1756474952771,83.34,211.3,211.08,7.19]
[1756474952960,29.59353967,211.31,211.08,7.19]
[1756474953161,22.58,211.3,211.08,7.19]
[1756474953365,29.59353967,211.25,211.04,70.5933]
[1756474953559,39.34,211.24,211.05,7.19]
[1756474953869,0.03150846,211.17,211.06,66.3234]
[1756474954071,0.03150846,211.17,211.06,4.2635]
[1756474954270,29.59353967,211.3,211.06,4.2635]
[1756474954465,22.58,211.29,211.05,7.19]
[1756474954664,0.0307238,211.14,211.05,7.19]
[1756474955063,15.92,211.21,211.05,7.19]
[1756474955264,29.59353967,211.24,211.05,73.5161]
[1756474955470,29.59353967,211.24,211.05,7.19]
[1756474956069,0.03046398,211.17,211.05,7.19]
[1756474956964,0.03046398,211.17,211.06,70.5869]
[1756474957271,0.03046398,211.17,211.06,4.2635]
[1756474957473,0.03046398,211.17,211.0,4.2648]
[1756474957973,29.59353967,211.19,210.99,7.44]
[1756474958168,0.03247303,211.11,210.99,7.44]
[1756474958367,0.03247303,211.11,210.91,66.3676]
[1756474958571,0.03247303,211.11,210.94,4.2659]
[1756474958766,107.3,211.11,210.94,4.2659]
[1756474959070,0.03360825,211.05,210.92,7.44]
[1756474959574,72.1,211.1,210.92,11.7063]
[1756474959770,29.59353967,211.15,210.92,11.7063]
[1756474959973,29.59353967,211.15,210.99,66.345]
[1756474960162,21.8,211.16,210.99,66.345]
[1756474960369,21.8,211.16,211.01,7.44]
[1756474960672,0.03364865,211.09,211.02,66.3357]
[1756474960970,0.03364865,211.09,211.05,7.44]
[1756474961174,0.03364865,211.09,211.02,7.44]
[1756474961369,318.32,211.24,211.02,7.44]
[1756474961370,318.36,211.24,211.08,7.44]
[1756474961580,29.54,211.23,211.11,66.3077]
[1756474961869,185.79734649,211.44,211.15,4.2617]
[1756474961870,0.04,211.3,211.15,4.2617]
[1756474962371,0.04,211.3,211.13,7.44]
[1756474962773,145.0,211.29,211.13,7.44]
[1756474963162,145.0,211.29,211.19,0.03376416]
[1756474963366,145.0,211.29,211.03,144.92]
[1756474963367,29.59353967,211.26,211.05,7.44]
[1756474964178,128.38,211.25,211.05,7.44]
[1756474964672,0.03073047,211.17,210.98,69.44]
[1756474964868,0.03073047,211.17,210.98,7.44]
[1756474965064,29.59353967,211.2,210.98,7.44]
[1756474965474,0.03093058,211.1,210.91,7.44]
[1756474965972,21.72,211.14,210.97,7.44]
[1756474966169,29.59353967,211.2,211.02,11.7044]
[1756474966370,29.59353967,211.14,210.93,7.44]
[1756474966970,21.76,211.13,210.93,7.44]
[1756474967170,29.59353967,211.14,210.96,7.44]
[1756474967370,37.74,211.14,210.96,7.44]
[1756474967672,318.3,211.22,211.03,66.3321]
[1756474967977,144.74,211.31,211.1,7.44]
[1756474968272,144.74,211.31,211.03,66.2641]
[1756474968480,144.74,211.31,210.99,95.93843967]
[1756474968481,29.59353967,211.27,211.02,7.44]
[1756474968875,29.59353967,211.27,211.03,4.2642]
[1756474969372,29.59353967,211.22,211.02,7.44]
[1756474970079,29.59353967,211.22,211.1,0.03001475]
[1756474970474,29.59353967,211.15,211.1,0.03001475]
[1756474970671,102.78,211.14,210.87,7.44]
[1756474970873,29.59353967,211.08,210.87,7.44]
[1756474971067,102.78,211.14,210.87,7.44]
[1756474971267,29.59353967,211.06,210.78,7.44]
[1756474971471,29.59353967,211.06,210.79,62.0]
[1756474971771,29.59353967,211.06,210.81,66.4008]
[1756474971975,318.34,211.16,210.81,66.4008]
[1756474971976,21.9,211.05,210.83,7.44]
[1756474972678,0.03190101,210.96,210.83,7.44]
[1756474973076,29.59353967,211.0,210.83,7.44]
[1756474973371,29.59353967,211.0,210.77,325.78]
[1756474973977,29.59353967,211.0,210.77,7.44]
[1756474974373,0.03298161,210.91,210.77,7.44]
[1756474974670,0.03298161,210.91,210.73,7.44]
[1756474974869,145.12,210.92,210.73,7.44]
[1756474975068,132.38,210.92,210.73,7.44]
[1756474975776,0.03275102,210.85,210.73,7.44]
[1756474976171,0.03275102,210.85,210.74,62.0]
[1756474976571,0.03275102,210.85,210.75,7.44]
[1756474976772,0.03275102,210.85,210.75,11.7098]
[1756474977872,318.38,211.01,210.78,66.4085]
[1756474978067,318.38,211.01,210.8,7.44]
[1756474978273,0.04,211.0,210.8,7.44]
[1756474978668,0.04,211.0,210.82,7.44]
[1756474979775,0.04,210.95,210.76,7.44]
[1756474979974,0.04,210.95,210.89,0.03191701]
[1756474980171,18.41606014,210.91,210.68,66.4423]
[1756474980477,18.41606014,210.86,210.68,7.44]
[1756474980879,18.41606014,210.86,210.61,66.4639]
[1756474980880,18.41606014,210.81,210.61,7.44]
[1756474981178,18.41606014,210.76,210.54,7.44]
[1756474981376,18.41606014,210.71,210.46,7.44]
[1756474981576,18.41606014,210.66,210.46,7.44]
[1756474981782,13.48,210.65,210.47,4.2755]
[1756474981976,144.48,210.66,210.46,7.44]
[1756474982180,318.56,210.7,210.5,7.44]
[1756474982381,318.56,210.7,210.51,66.4965]
[1756474982382,144.38,210.69,210.51,66.4965]
[1756474982584,144.38,210.69,210.54,7.44]
[1756474982781,144.38,210.69,210.54,6.44]
[1756474983584,318.56,210.7,210.54,6.44]
[1756474984091,318.56,210.7,210.56,4.2736]
[1756474984387,318.56,210.7,210.55,66.4837]
[1756474984388,318.56,210.7,210.57,66.477]
[1756474984582,1.0,210.81,210.61,66.4649]
[1756474984782,144.14,210.8,210.59,66.4698]
[1756474984988,1.0,210.79,210.59,7.44]
[1756474985184,1.0,210.79,210.59,73.9105]
[1756474985385,1.0,210.79,210.59,7.44]
[1756474985689,0.03148076,210.71,210.59,11.713]
[1756474986183,0.03148076,210.71,210.6,66.4671]
[1756474986384,1.0,210.7,210.53,144.08]
[1756474986883,87.86,210.76,210.61,7.13]
[1756474987384,1.04,210.78,210.61,7.13]
[1756474987586,348.2047884,210.83,210.69,7.13]
[1756474987587,0.03056789,210.71,210.69,7.13]
[1756474987792,318.68,210.83,210.71,66.4334]
[1756474987987,318.68,210.83,210.69,7.13]
[1756474988185,318.68,210.83,210.64,73.5854]
[1756474988382,318.68,210.83,210.64,7.13]
[1756474988583,1.04,210.82,210.64,7.13]
[1756474988787,1.04,210.82,210.66,66.4487]
[1756474988991,318.68,210.83,210.73,66.4253]
[1756474989190,318.68,210.83,210.71,73.59297597]
[1756474989493,1.04,210.9,210.77,66.413]
[1756474989695,145.0,210.9,210.79,4.2689]
[1756474989889,145.0,210.9,210.72,66.4293]
[1756474990189,1.04,210.89,210.81,0.03059812]
[1756474992088,318.8,210.95,210.81,66.43129812]
[1756474992288,1.04,210.95,210.85,66.3884]
[1756474992488,15.76,210.97,210.85,66.388]
[1756474992691,1.04,210.96,210.79,66.4072]
[1756474992991,15.76,210.97,210.75,73.5496]
[1756474993192,1.04,210.96,210.75,11.3997]
[1756474993384,1.04,210.92,210.75,11.3997]
[1756474993588,1.04,210.92,210.84,0.03069625]
[1756474993988,143.92,210.91,210.84,0.03069625]
[1756474994184,1.04,210.92,210.84,0.03069625]
[1756474994385,144.82,210.92,210.84,0.03069625]
[1756474995387,1.04,210.92,210.84,0.03069625]
[1756474995590,1.04,210.99,210.86,66.3852]
[1756474995786,1.04,210.97,210.64,7.13]
[1756474995987,144.18,210.98,210.61,4.2726]
[1756474995988,1.04,210.78,210.61,4.2726]
[1756474996194,358.92,210.77,210.61,4.2726]
[1756474996390,318.78,210.77,210.56,7.13]
[1756474996693,318.78,210.77,210.57,66.4753]
[1756474996895,146.78,210.76,210.57,62.0]
[1756474997092,146.78,210.76,210.56,7.13]
[1756474997489,0.03099896,210.68,210.56,7.13]
[1756474998093,0.03099896,210.68,210.6,4.2728]
[1756474998291,0.03099896,210.68,210.62,66.4611]
[1756474998792,0.03099896,210.68,210.61,66.4641]
[1756474998999,0.03099896,210.68,210.6,7.13]
[1756474999195,0.03099896,210.68,210.62,4.2724]
[1756474999496,0.03099896,210.68,210.62,7.13]
[1756474999692,318.78,210.77,210.65,7.13]
[1756474999897,146.42,210.81,210.65,7.13]
[1756475000094,146.42,210.81,210.66,62.0]
[1756475000296,147.48,210.81,210.66,62.0]
[1756475000693,29.5247884,210.8,210.65,7.13]
[1756475000897,29.5247884,210.8,210.6,11.4027]
[1756475001093,29.5247884,210.74,210.6,7.13]
[1756475001290,30.5847884,210.74,210.6,7.13]
[1756475001693,30.5847884,210.74,210.65,0.03132865]
[1756475002098,349.4447884,210.74,210.65,0.03132865]
[1756475002401,0.03072527,210.72,210.53,7.13]
[1756475002699,146.12,210.71,210.53,7.13]
[1756475003300,1.06,210.7,210.53,7.13]
[1756475003493,29.5247884,210.68,210.53,7.13]
[1756475003894,0.03128132,210.63,210.53,7.13]
[1756475004697,0.03128132,210.63,210.53,11.4042]
[1756475004897,0.03128132,210.63,210.58,66.4731]
[1756475005198,0.03128132,210.63,210.6,7.13]
[1756475005403,464.52,210.74,210.62,7.13]
[1756475006302,29.5247884,210.71,210.54,11.4039]
[1756475006495,1.09,210.7,210.54,7.13]
[1756475006696,1.06,210.69,210.46,7.13]
[1756475006891,1.06,210.64,210.46,7.13]
[1756475007197,145.62,210.63,210.46,7.13]
[1756475007398,145.64,210.62,210.47,4.2754]
[1756475007696,145.64,210.62,210.46,7.13]
[1756475007897,145.62,210.61,210.46,7.13]
[1756475008096,1.06,210.64,210.46,7.13]
[1756475008301,1.06,210.64,210.49,66.5011]
[1756475008503,74.44,210.63,210.5,7.13]
[1756475008696,0.03217165,210.59,210.5,7.13]